Cogmind - Beta 16 @@@ ROGUE MODE // 2025.10.23 @ 15:02:00 Player: Briarspitter Result: Destroyed by YV-QEI(R) with Subdweller Machine Gun Performance ------------- Evolutions (0) 0 Regions Visited (2) 400 Robots Destroyed (23) 115 Value Destroyed (490) 490 Prototype IDs (2) 40 Alien Tech Used (0) 0 Bonus (0) 0 TOTAL SCORE: 1045 Bonus ------- None Cogmind --------- Core Integrity 0/250 Matter 300/300 Energy 80/100 System Corruption 0% Temperature Cool (0) Movement Rolling (95) Ox1 Location -10/Subcaves Parts ------- > --- POWER (1) -------- Subdweller Power Source > --- PROPULSION (2) --- Wheel > --- UTILITY (2) ------ Medium Storage Unit Signal Interpreter > --- WEAPON (2) ------- Battle Rifle Flamer > --- INVENTORY (10) --- Sensor Array Improved Terrain Scanner Seismic Detector Scrap Shield Fragment (47) Peak State ------------ > --- POWER ------------ Subdweller Power Source > --- PROPULSION ------- Wheel Subdweller Monowheel > --- UTILITY ---------- Medium Storage Unit Signal Interpreter > --- WEAPON ----------- Flamer Hammer > --- INVENTORY -------- Sensor Array Improved Terrain Scanner Seismic Detector Battle Rifle Mining Laser Scrap Shield Fragment [Rating: 11] Favorites ----------- Power Ion Engine Engine Ion Engine Propulsion Aluminum Leg Leg Aluminum Leg Wheel Wheel Utility Signal Interpreter Device Sensor Array Storage Small Storage Unit Processor Signal Interpreter Weapon Assault Rifle Energy Gun Medium Laser Ballistic Gun Assault Rifle Special Weapon Mining Laser Impact Weapon Hammer Build | -11 -10 -10 ------- Run | Yrd Mat Sub Slots Evolved . | . . . Power . | . . . Propulsion . | . . . Utility . | . . . Weapon . | . . . Parts Attached 23 | 9 7 7 Power 3 | 1 1 1 Engine 3 | 1 1 1 Core . | . . . Reactor . | . . . Propulsion 6 | 2 2 2 Treads . | . . . Leg 4 | 2 2 . Wheel 2 | . . 2 Hover . | . . . Flight . | . . . Utility 6 | 3 2 1 Device 3 | 2 1 . Storage 2 | 1 . 1 Processor 1 | . 1 . Hackware . | . . . Protection . | . . . Artifact . | . . . Weapon 8 | 3 2 3 Energy Gun 1 | 1 . . Energy Cannon . | . . . Ballistic Gun 3 | 2 . 1 Ballistic Cannon . | . . . Launcher . | . . . Special Weapon 3 | . 2 1 Impact Weapon 1 | . . 1 Slashing Weapon . | . . . Piercing Weapon . | . . . Special Melee Weapon . | . . . Unidentified Prototypes . | . . . Parts Lost 7 | . . 7 Power 1 | . . 1 Propulsion 3 | . . 3 Utility . | . . . Weapon 3 | . . 3 Highest Loss Streak 4 | . . 4 To Critical Strikes . | . . . Average Backups 4 | 4 5 4 Power . | . . . Propulsion . | . . . Utility 2 | 1 3 3 Weapon 1 | 1 1 1 Tool/Special . | . . . Unused Backups 5 | 1 3 1 Power 2 | 1 1 . Propulsion . | . . . Utility 3 | . 2 1 Weapon . | . . . Tool/Special . | . . . Average Slot Usage (%) 98 | . 100 96 Engine 13 | . 14 13 Leg 17 | . 28 7 Wheel 8 | . . 18 Device 9 | . 14 4 Storage 6 | . 3 9 Processor 12 | . 10 14 Energy Gun 7 | . 11 3 Ballistic Gun 8 | . 10 5 Special Weapon 8 | . 5 11 Impact Weapon 3 | . . 6 Peak Build Rating 11 | 10 10 11 Average Rating 8 | 7 7 9 On Entrance 5 | . 10 7 Avg Prop Armor Cover (%) . | . . . Naked Turns . | . . . Heaviest Build 19 | 15 15 19 Greatest Support 30 | 20 20 30 Greatest Overweight (x) 3 | . . 3 Average Overweight (x) . | . . . Largest Inventory Capacity 10 | 8 8 10 Average Capacity 7 | 7 5 8 Most Carried 8 | 8 8 6 Average Carried 5 | 4 5 5 Final Capacity 10 | 8 5 10 Final Carried 8 | 8 5 4 Class Distribution -------------------- 71% | Mutant 28% | Scavenger-Mutant Dominant Class ---------------- Mutant | -10/Materials Scavenger-Mutant | -10/Subcaves Resources | -11 -10 -10 ----------- Run | Yrd Mat Sub Matter Collected 797 | 398 275 124 Remotely . | . . . Salvage Created 772 | 210 414 148 Parts 48 | 21 25 2 Haulers Intercepted 1 | . 1 . Recyclers Shooed . | . . . Parts Field Recycled . | . . . Retrieved Matter . | . . . Parts Self-Destructed 10 | . . 10 Prevented . | . . . Parts Restored . | . . . Kills | -11 -10 -10 ------- Run | Yrd Mat Sub Combat Hostiles Destroyed 14 | . 11 3 Guns 11 | . 11 . AOE 1 | . . 1 Classes Destroyed 7 | 3 3 1 Worker 2 | 2 . . Tunneler 5 | 5 . . Hauler 1 | . 1 . Recycler 1 | 1 . . Swarmer 3 | . 3 . Grunt 8 | . 8 . Subdweller 3 | . . 3 Best Kill Streak 3 | 2 3 2 Combat Bots Only 3 | . 3 2 Max Kills in Single Turn 1 | 1 1 1 Gunslinging . | . . . Exploded 1 | . . 1 Melee . | . . . Uniques/NPCs Destroyed . | . . . Combat | -11 -10 -10 -------- Run | Yrd Mat Sub Hostile Shots Fired 101 | . 48 53 Missed 35 | . 18 17 Hits 66 | . 30 36 Projectile 66 | . 30 36 Critical Strikes 2 | . . 2 Damage Taken 1066 | . 330 736 Core 270 | . 48 222 Absorbed by Shields . | . . . Core Remaining (%) 100 | 100 . . Volleys Fired 69 | 13 43 13 Largest 2 | 2 2 2 Hottest 200 | 70 200 150 Shots Fired 126 | 26 86 14 Gun 120 | 26 84 10 Cannon . | . . . Launcher . | . . . Special 6 | . 2 4 Kinetic 63 | 13 42 8 Thermal 63 | 13 44 6 Explosive . | . . . Electromagnetic . | . . . Robot Hit Streak 13 | 7 8 13 Robot Miss Streak 3 | 3 3 . Penetration Max . | . . . Secondary Targets . | . . . Shots Hit Robots 97 | 15 55 27 Core Hits 33 | 8 22 3 Critical Kills . | . . . Critical Parts Destroyed 3 | . . 3 Critical Strikes 6 | . . 6 Destroy 1 | . . 1 Smash 5 | . . 5 Melee Attacks 18 | . . 18 Impact 18 | . . 18 Slashing . | . . . Piercing . | . . . Sneak Attacks . | . . . Combat Hostiles . | . . . Follow-up Attacks . | . . . Damage Inflicted 1550 | 202 685 663 Guns 1009 | 202 685 122 Cannons . | . . . Explosions . | . . . Melee 518 | . . 518 Ramming . | . . . Kinetic 584 | 113 362 109 Thermal 448 | 89 323 36 Explosive . | . . . Electromagnetic . | . . . Impact 518 | . . 518 Slashing . | . . . Piercing . | . . . Highest Corruption . | . . . Average Corruption . | . . . Corruption Purged . | . . . Corruption Blocked . | . . . Overload Shots . | . . . Overflow Damage 125 | . . 125 Projectiles . | . . . Explosions . | . . . Melee 125 | . . 125 Knockbacks 5 | . . 5 Impact 5 | . . 5 Kinetic . | . . . Secondary . | . . . Self-Inflicted Damage . | . . . Shots . | . . . Rammed . | . . . Targets Rammed . | . . . Kicked . | . . . Crushed . | . . . Highest Temperature 123 | 27 123 . Average Temperature 26 | 9 30 . Received Heat Transfer 201 | . 153 48 Siege Activations . | . . . Martial Activations . | . . . Shielding Activations . | . . . Robots Disrupted 1 | . . 1 Combat Hostiles 1 | . . 1 Robots Corrupted 2 | . . 2 Combat Hostiles 2 | . . 2 Parts Fried 1 | . . 1 Impact Corruptions 5 | . . 5 Robots Melted . | . . . Combat Hostiles . | . . . Parts Melted 1 | . 1 . Heat Transferred 1418 | 259 962 197 Parts Sabotaged . | . . . Parts Stolen . | . . . Parts Stripped . | . . . Power Chain Reactions . | . . . Alert | -11 -10 -10 ------- Run | Yrd Mat Sub Maximum Alert Level . | . . . Low Security (%) 100 | 100 100 . Level 1 . | . . . Level 2 . | . . . Level 3 . | . . . Level 4 . | . . . Level 5 . | . . . High Security . | . . . Max Security . | . . . Peak Influence 118 | 5 118 . Initial . | . . . Average 21 | 1 30 . Influence Increases 383 | 40 343 . Destroy 0b10 Robot/C 220 | . 220 . Destroy 0b10 Robot/NC 45 | 40 5 . Destroy Leader 42 | . 42 . Disable Machine 15 | . 15 . Destroy Structure 1 | . 1 . Lose Combat Pursuer 60 | . 60 . Influence Decreases 383 | 40 242 101 Entered New Map 49 | . . 49 Time Decay 334 | 40 242 52 Squads Dispatched 3 | . 3 . Investigation 2 | . 2 . Extermination . | . . . Reinforcement 1 | . 1 . Assault . | . . . Garrison . | . . . Intercept . | . . . Searches Triggered . | . . . Construction Impeded . | . . . Haulers Reinforced . | . . . Active Scanning Responses . | . . . Cargo Convoy Interrupts . | . . . Stealth | -11 -10 -10 --------- Run | Yrd Mat Sub Distress Signals 1 | . 1 . Communications Jammed . | . . . Distress Signals . | . . . Times Spotted 24 | . 19 5 Peak Tracking Total 4 | . 4 2 Tactical Retreats 3 | . 3 . Traps | -11 -10 -10 ------- Run | Yrd Mat Sub Traps Triggered 1 | . 1 . Indirectly . | . . . Trap Hack Attempts . | . . . Triggered . | . . . Disarmed . | . . . Reprogrammed . | . . . Reused . | . . . Traps Extracted . | . . . Installed . | . . . Triggered . | . . . Machines | -11 -10 -10 ---------- Run | Yrd Mat Sub Machines Disabled 1 | . 1 . Max in Single Turn 1 | . 1 . Machines Repaired . | . . . Machines Dismantled . | . . . Machines Sabotaged . | . . . Overloaded Fab Kills . | . . . Hacking | -11 -10 -10 --------- Run | Yrd Mat Sub Machines Accessed 4 | . 4 . Terminals 3 | . 3 . Fabricators . | . . . Repair Stations . | . . . Recycling Units 1 | . 1 . Scanalyzers . | . . . Garrison Access . | . . . Total Hacks 10 | . 10 . Successful 7 | . 7 . Failed 3 | . 3 . Catastrophic 1 | . 1 . Database Lockouts . | . . . Manual . | . . . Terminals 9 | . 9 . Fabricators . | . . . Repair Stations . | . . . Recycling Units 1 | . 1 . Scanalyzers . | . . . Garrison Access . | . . . Terminal Hacks 6 | . 6 . Record 4 | . 4 . Prototype ID Bank 1 | . 1 . Alert Level 1 | . 1 . Fabricator Hacks . | . . . Repair Station Hacks . | . . . Recycling Unit Hacks 1 | . 1 . Report Inventory 1 | . 1 . Scanalyzer . | . . . Garrison Access Hacks . | . . . Unauthorized Hacks . | . . . Terminals . | . . . Fabricators . | . . . Repair Stations . | . . . Recycling Units . | . . . Scanalyzers . | . . . Garrison Access . | . . . Data Cores Recovered . | . . . Used . | . . . Hacking Detections 3 | . 3 . Full Trace Events 1 | . 1 . Feedback Events . | . . . Feedback Blocked . | . . . Robot Schematics Acquired . | . . . Robots Built . | . . . Authchips . | . . . Time . | . . . Total Robot Build Rating . | . . . Part Schematics Acquired . | . . . Parts Built . | . . . Authchips . | . . . Time . | . . . Total Part Build Rating . | . . . Part Studies Acquired . | . . . Parts Repaired . | . . . Time . | . . . Parts Recycled . | . . . Recycled Matter . | . . . Retrieved Matter . | . . . Retrieved Components . | . . . Parts Scanalyzed . | . . . Part Schematics Acquired . | . . . Parts Damaged . | . . . Bothacking | -11 -10 -10 ------------ Run | Yrd Mat Sub Used RIF Installer . | . . . Robots Hacked . | . . . Non-combat . | . . . Combat . | . . . Robot Hacks Applied . | . . . Relay Couplers Released . | . . . Fabnet Peak Effective % . | . . . Robots Rewired . | . . . Allies Hacked . | . . . Hacks Repelled . | . . . Allies | -11 -10 -10 -------- Run | Yrd Mat Sub Total Allies . | . . . Largest Group . | . . . Highest-Rated Group . | . . . Highest-Rated Ally . | . . . Total Orders . | . . . Ally Attacks . | . . . Total Damage . | . . . Kills . | . . . Allies Corrupted . | . . . Allies Melted . | . . . Intel | -11 -10 -10 ------- Run | Yrd Mat Sub Active Infowar (turns) 1136 | 219 696 221 Sensors 765 | . 544 221 Terrain 335 | 183 152 . Seismic 36 | 36 . . Robot Analysis Total . | . . . Derelict Logs Recovered 1 | . . 1 Drone Launches . | . . . Drone Recoveries . | . . . Exploration | -11 -10 -10 ------------- Run | Yrd Mat Sub Turns Passed 1651 | 304 698 649 Spaces Moved 1178 | 206 425 547 Core 32 | 13 . 19 Treads . | . . . Legs 736 | 193 425 118 Wheels 410 | . . 410 Hover . | . . . Flight . | . . . Fastest Speed 50 | 50 120 50 Average Speed 110 | 115 120 100 Slowest Speed 200 | 120 120 200 Overloaded Moves . | . . . Propulsion Burnouts . | . . . Robots Hopped . | . . . Potential Cave-ins . | . . . Cave-ins Triggered . | . . . Exploration Rate (%) 28 | 8 52 24 Regions Visited 2 Branch Regions 1 Pre-discovered Areas 1 | . . 1 Known Exits Taken 1 | . 1 . Unknown Exits Taken 1 | 1 . . Scrap Searched . | . . . Spaces Dug . | . . . Terrain Destroyed 1 | . 1 . Melee . | . . . Projectile 1 | . 1 . AOE . | . . . Terrain Rammed . | . . . Walls Destroyed . | . . . Machines Disabled . | . . . Actions | -11 -10 -10 --------- Run | Yrd Mat Sub Total 1364 | 246 525 593 Wait 31 | . 31 . Move 1176 | 205 424 547 Hop . | . . . Pick Up 25 | 17 6 2 Fast Attach 7 | . 3 4 Attach 12 | 7 2 3 Detach . | . . . Swap 11 | 2 4 5 Drop 15 | 2 12 1 Fire 69 | 13 43 13 Melee 18 | . . 18 Ram . | . . . Kick . | . . . Crush . | . . . Escape Stasis . | . . . Rewire . | . . . Trap . | . . . Miscellaneous . | . . . Route ------- -11/Scrapyard -10/Materials (discovered 3 exits: *Mat / *Min / *Sub) -10/Subcaves History --------- Turn | Location | Event 25 | -11/Scrapyard | Discovered new exit (range 16) 305 | -11/Scrapyard | Entered Materials 306 | -10/Materials | Build established: Mutant 449 | -10/Materials | Discovered new exit (range 6) 461 | -10/Materials | Identified exit to Mines 574 | -10/Materials | Discovered new exit (range 13) 587 | -10/Materials | Identified exit to Subcaves 601 | -10/Materials | Discovered new exit (range 7) 608 | -10/Materials | Identified exit to Materials 1003 | -10/Materials | Entered Subcaves 1004 | -10/Subcaves | Approached by a straggling Scientist 1165 | -10/Subcaves | Core integrity fell below 50% 1203 | -10/Subcaves | Lost 4 parts (1p2n1w) 1471 | -10/Subcaves | Learned location of Zion (-6) 1471 | -10/Subcaves | Met a Zionite searching for "candidates" 1476 | -10/Subcaves | Build established: Scavenger-Mutant 1519 | -10/Subcaves | Curiously followed by a Cobbler waking with a query about "LVR3C" 1548 | -10/Subcaves | Core integrity fell below 20% 1570 | -10/Subcaves | Ambushed by Subdwellers from Twisted Machinery 1652 | -10/Subcaves | Destroyed by YV-QEI(R) with Subdweller Machine Gun Last Messages --------------- 01527_ 3B-J4O(R) suffers critical hit (Smash). 01527_ 3B-J4O(R) knocked back. 01529_ Mining Laser destroyed. 01542_ E7-XSL(O) collects matter. 01543_ 3B-J4O(R) knocked back. 01550_ 3B-J4O(R) suffers critical hit (Smash). 01552_ Destroyed Sub. Power Source. 01552_ 3B-J4O(R) system corrupted by crushing effect. 01561_ 3B-J4O(R) IFF system glitched. 01563_ Destroyed Sub. Monowheel. 01563_ 3B-J4O(R) system corrupted by crushing effect. 01564_ 3B-J4O(R) system terminally corrupted. 01566_ Acquired 28 matter. 01585_ Hammer destroyed. 01589_ Acquired 10 matter. 01648_ Sub. Monowheel destroyed. 01650_ IR-YHN(R) shuts down. Map ----- +----------------------------------------------------+ | ?????????????????????????????????????????????????? | | ?????????????????????????????????????????????????? | | ?????????????????????????????????????????????????? | | ?????????????????????????????????????????????????? | | ?????????????????????????????????????????????????? | | ?????????????????????????????????????????????????? | | ?????????????????????????????????????????????????? | | ?????????????????????????????????????????????????? | | ?????????????????????????????????????????????????? | | ?????????????????????????????????????????????????? | | ?????????????????????????????????????????????????? | | ?????????????????????????????????????????????????? | | ?????????????????????????????????????????????????? | | ????# ##??????????????????????####???????????????? | | ?? ##????????????????????## #????????????" ? | | #####????????????????# #???????#???"" ? | | ####????????????# #???????"""" ?? | | ??????????????# ##?????? "" ??? | | ## ??????????????# ##?????# ""#" | | #??# #### #???????????????# ####?## """"" | | ???# #??# ##????########### ### """" ? | | ??## #??# ###??# ## ## " """ "#?? | | ??# ### #### R """""""##? | | ???# " R = "##" #? | | ????# " " # # *% *""## #? | | ????## "## """ @ #### # " ## | | ?#???????## ###"" ## ##??###### ## | | # ???????## #?##########????????###### ## | | ??????## ##????????????????????????# # | | ??????# "##????????????????????????## | | # ??????# ##?????????????????????????# ## | | # ?????## #??????????????????????????## ### ## | | #????# #??????????????????????????## #?# | | #????# ##?????????????????????????## ### | | #????# #?????????????????????????## % | | ##???# #?????????????????????????# # | | #??## ##?????????????????????????#### ## | | # #??# #????????????????????????????# #####? | | # ##### #????????????????????????????# ##????? | | ### #????????????????????????????# #?????? | | # #????????????????????????????####?????? | | ###?????????????????????????????????????? | | #???????????????????????????????????????? | | #???????????????????????????????????????? | | ## #???????????????????????????????????????? | | ########???????????????????????????????????????? | | ##?????????????????????????????????????????????? | | #?????????????????????????????????????????????? | | #?????????????????????????????????????????????? | | ##?????????????????????????????????????????????? | +----------------------------------------------------+ Best States ------------- Heat Dissipation 25 Energy Generation 15 Energy Capacity 250 Matter Stores 300 Matter Capacity 300 Sight Range 16 Robot Scan Range 14 Terrain Scan Range 16 Terrain Scan Density 10 Evasion (%) 55 Item Schematics ----------------- None Robot Schematics ------------------ None Fabricated ------------ Nothing Repaired ---------- Nothing Studied --------- None Alien Tech Used ----------------- None Achievements -------------- DATA ERROR: Steam Global Achievement% Organ Harvest There's More Where That Came From Challenges ------------ None Game ------ Seed CompositeArchitectAutocannon Manual? 0 Play Time 00:25:40 Cumulative 21.6 hours Start 2025.10.23 @ 14:37:18 End 2025.10.23 @ 15:02:00 Sessions 1 Manual Loads 0 Difficulty Rogue Special Mode None Game No. 21 Rogue 21 Adventurer 0 Explorer 0 Win Type - Total 0 Types 0/0/0/0/0/0/0/0/0/0 Lore% 12 Gallery% 24 Achievement% 11 Wizard Run 0 Options --------- Layout 1 ASCII 0 Keyboard 0 Movement Mouse Keybinds 0 Fullscreen 1 Font 24/Smallcaps Map View 50x35 Zoom Use 0% Tactical HUD 1 Map Filters NONE Filters NONE Steam 1 RUN: bb9ef1ac-c7dd-4708-b645-5b2dc4335b4e